[Event "Early-Titled-Tuesday-Blitz-September-26-2023"]
[Site "Chess.com"]
[Date "2023.09.26"]
[Round "6"]
[White "LoydBlankenship"]
[Black "jcibarra"]
[Result "0-1"]
[WhiteElo "2658"]
[BlackElo "2954"]
[TimeControl "180+1"]
[EndTime "9:10:59 PDT"]
[Termination "jcibarra won on time"]

1. e4 {[%clk 0:02:56.6]} 1... c5 {[%clk 0:03:00.1]} 2. Nf3 {[%clk 0:02:56.5]}
2... Nc6 {[%clk 0:03:00.6]} 3. d4 {[%clk 0:02:57.2]} 3... cxd4 {[%clk
0:03:00.6]} 4. Nxd4 {[%clk 0:02:58.1]} 4... Nf6 {[%clk 0:03:00.6]} 5. Nc3 {[%clk
0:02:58.5]} 5... e6 {[%clk 0:03:01.2]} 6. Ndb5 {[%clk 0:02:57.5]} 6... Bc5
{[%clk 0:03:01]} 7. Nd6+ {[%clk 0:02:53.4]} 7... Ke7 {[%clk 0:03:00.9]} 8. Nxc8+
{[%clk 0:02:52.3]} 8... Rxc8 {[%clk 0:03:01.7]} 9. Bd3 {[%clk 0:02:43.9]} 9...
Qc7 {[%clk 0:02:59.8]} 10. O-O {[%clk 0:02:42.4]} 10... h5 {[%clk 0:02:59.7]}
11. Bg5 {[%clk 0:02:38.8]} 11... Kf8 {[%clk 0:02:57.2]} 12. Qd2 {[%clk
0:02:07.5]} 12... a6 {[%clk 0:02:40.8]} 13. Kh1 {[%clk 0:01:57.7]} 13... h4
{[%clk 0:02:34.6]} 14. Bf4 {[%clk 0:01:49.4]} 14... Ne5 {[%clk 0:02:32.3]} 15.
h3 {[%clk 0:01:44.9]} 15... d6 {[%clk 0:02:27.7]} 16. Rad1 {[%clk 0:01:38.5]}
16... b5 {[%clk 0:02:16]} 17. Ne2 {[%clk 0:01:28.1]} 17... Ke7 {[%clk
0:02:10.5]} 18. Bh2 {[%clk 0:01:21.5]} 18... Nc4 {[%clk 0:02:04.4]} 19. Qc1
{[%clk 0:01:07.8]} 19... Ne5 {[%clk 0:01:57.4]} 20. f4 {[%clk 0:01:03.2]} 20...
Nc4 {[%clk 0:01:53]} 21. Bxc4 {[%clk 0:00:58.2]} 21... bxc4 {[%clk 0:01:53.9]}
22. Nc3 {[%clk 0:00:54.7]} 22... Nh5 {[%clk 0:01:49.6]} 23. f5 {[%clk
0:00:48.6]} 23... Nf6 {[%clk 0:01:44.1]} 24. fxe6 {[%clk 0:00:42.6]} 24... fxe6
{[%clk 0:01:44.3]} 25. e5 {[%clk 0:00:39.5]} 25... dxe5 {[%clk 0:01:39.9]} 26.
Qg5 {[%clk 0:00:39.8]} 26... Ke8 {[%clk 0:01:00.8]} 27. Bxe5 {[%clk 0:00:35.1]}
27... Qf7 {[%clk 0:01:01.4]} 28. Bxf6 {[%clk 0:00:22.1]} 28... gxf6 {[%clk
0:01:02.3]} 29. Rxf6 {[%clk 0:00:22.5]} 29... Be7 {[%clk 0:01:03.1]} 30. Rxf7
{[%clk 0:00:21.8]} 30... Bxg5 {[%clk 0:01:03.7]} 31. Ra7 {[%clk 0:00:21]} 31...
Rf8 {[%clk 0:00:50.1]} 32. Ne4 {[%clk 0:00:20.8]} 32... Be7 {[%clk 0:00:47.3]}
33. Rdd7 {[%clk 0:00:20.4]} 33... Rf1+ {[%clk 0:00:34.6]} 34. Kh2 {[%clk
0:00:20.2]} 34... Bf8 {[%clk 0:00:34.9]} 35. Nd6+ {[%clk 0:00:09.8]} 35... Bxd6+
{[%clk 0:00:35]} 36. Rxd6 {[%clk 0:00:10.7]} 36... Re1 {[%clk 0:00:35.5]} 37.
Raxa6 {[%clk 0:00:10.5]} 37... Ke7 {[%clk 0:00:36.2]} 38. Rd2 {[%clk 0:00:09.8]}
38... Rf8 {[%clk 0:00:35.5]} 39. Ra7+ {[%clk 0:00:09.7]} 39... Ke8 {[%clk
0:00:33.8]} 40. Rh7 {[%clk 0:00:09.5]} 40... Rf4 {[%clk 0:00:32.8]} 41. a4
{[%clk 0:00:09.5]} 41... c3 {[%clk 0:00:31.8]} 42. bxc3 {[%clk 0:00:09.9]} 42...
Rxa4 {[%clk 0:00:32.5]} 43. Rd4 {[%clk 0:00:09.9]} 43... Re4 {[%clk 0:00:27.7]}
44. Rxa4 {[%clk 0:00:08.5]} 44... Rxa4 {[%clk 0:00:28.6]} 45. Rc7 {[%clk
0:00:08.5]} 45... Kd8 {[%clk 0:00:27]} 46. Rh7 {[%clk 0:00:09.1]} 46... Rc4
{[%clk 0:00:26.6]} 47. Kg1 {[%clk 0:00:08.8]} 47... Ke8 {[%clk 0:00:24.5]} 48.
Kf2 {[%clk 0:00:07.6]} 48... Kf8 {[%clk 0:00:25.1]} 49. Ke2 {[%clk 0:00:07.2]}
49... Kg8 {[%clk 0:00:22]} 50. Kd3 {[%clk 0:00:06.2]} 50... Rf4 {[%clk
0:00:19.2]} 51. Rh5 {[%clk 0:00:05.4]} 51... Kf7 {[%clk 0:00:18.4]} 52. Rg5
{[%clk 0:00:05.3]} 52... Kf6 {[%clk 0:00:16]} 53. Rg4 {[%clk 0:00:04.8]} 53...
Rf2 {[%clk 0:00:13.5]} 54. c4 {[%clk 0:00:05.2]} 54... Ke5 {[%clk 0:00:13.5]}
55. Kc3 {[%clk 0:00:02.9]} 55... Kd6 {[%clk 0:00:13]} 56. Rd4+ {[%clk
0:00:02.4]} 56... Kc5 {[%clk 0:00:13]} 57. Rg4 {[%clk 0:00:03.3]} 57... e5
{[%clk 0:00:12.5]} 58. Rg5 {[%clk 0:00:03.2]} 58... Kd6 {[%clk 0:00:12.2]} 59.
Kd3 {[%clk 0:00:03.3]} 59... Rf4 {[%clk 0:00:11.9]} 60. Rg6+ {[%clk 0:00:03.8]}
60... Kc5 {[%clk 0:00:12]} 61. Rg4 {[%clk 0:00:04.7]} 61... Rf2 {[%clk
0:00:10.9]} 62. c3 {[%clk 0:00:05]} 62... Ra2 {[%clk 0:00:08.3]} 63. Ke4 {[%clk
0:00:05.1]} 63... Re2+ {[%clk 0:00:08]} 64. Kf5 {[%clk 0:00:05.2]} 64... Kd6
{[%clk 0:00:07.9]} 65. Kg5 {[%clk 0:00:05.7]} 65... e4 {[%clk 0:00:06.9]} 66.
Kxh4 {[%clk 0:00:06.2]} 66... Ke5 {[%clk 0:00:07.5]} 67. Kg3 {[%clk 0:00:06.7]}
67... Re3+ {[%clk 0:00:07]} 68. Kh4 {[%clk 0:00:06.5]} 68... Rxc3 {[%clk
0:00:07.9]} 69. Rg8 {[%clk 0:00:05.1]} 69... Rxc4 {[%clk 0:00:06.5]} 70. g4
{[%clk 0:00:05.6]} 70... e3 {[%clk 0:00:06.4]} 71. Re8+ {[%clk 0:00:06.1]} 71...
Kf4 {[%clk 0:00:07]} 72. Rf8+ {[%clk 0:00:04.8]} 72... Ke4 {[%clk 0:00:06.7]}
73. Kg3 {[%clk 0:00:04.7]} 73... Kd3 {[%clk 0:00:05.2]} 74. Re8 {[%clk
0:00:04.1]} 74... e2 {[%clk 0:00:04.4]} 75. g5 {[%clk 0:00:04.2]} 75... Kd2
{[%clk 0:00:03.1]} 76. Rd8+ {[%clk 0:00:03.4]} 76... Ke3 {[%clk 0:00:02.9]} 77.
Re8+ {[%clk 0:00:04.1]} 77... Kd2 {[%clk 0:00:03.2]} 78. h4 {[%clk 0:00:04.2]}
78... Rc3+ {[%clk 0:00:03.1]} 79. Kg4 {[%clk 0:00:04.4]} 79... Re3 {[%clk
0:00:03.1]} 80. Rd8+ {[%clk 0:00:04.4]} 80... Kc2 {[%clk 0:00:03.3]} 81. Rc8+
{[%clk 0:00:05]} 81... Kd2 {[%clk 0:00:03.5]} 82. Rd8+ {[%clk 0:00:05.1]} 82...
Ke1 {[%clk 0:00:04.1]} 83. g6 {[%clk 0:00:05.1]} 83... Kf2 {[%clk 0:00:03.9]}
84. Rf8+ {[%clk 0:00:05.5]} 84... Kg2 {[%clk 0:00:04.5]} 85. Kg5 {[%clk
0:00:03.1]} 85... e1=Q {[%clk 0:00:04.8]} 86. Kh5 {[%clk 0:00:03.6]} 86... Re5+
{[%clk 0:00:04.8]} 87. Kh6 {[%clk 0:00:03.9]} 87... Qxh4+ {[%clk 0:00:05.3]} 88.
Kg7 {[%clk 0:00:04.7]} 88... Re7+ {[%clk 0:00:05.7]} 89. Rf7 {[%clk 0:00:05.6]}
89... Qd4+ {[%clk 0:00:05.8]} 90. Kg8 {[%clk 0:00:06]} 90... Re8+ {[%clk
0:00:06.1]} 91. Rf8 {[%clk 0:00:05.7]} 91... Qd5+ {[%clk 0:00:06.4]} 92. Kg7
{[%clk 0:00:06]} 92... Qe5+ {[%clk 0:00:06.9]} 93. Kg8 {[%clk 0:00:06.6]} 93...
Qe6+ {[%clk 0:00:07.4]} 94. Kg7 {[%clk 0:00:07.3]} 94... Rxf8 {[%clk 0:00:07.7]}
95. Kh6 {[%clk 0:00:08.2]} 95... Rh8+ {[%clk 0:00:06.7]} 96. Kg5 {[%clk
0:00:08]} 96... Qe5+ {[%clk 0:00:06.3]} 97. Kg4 {[%clk 0:00:08.4]} 97... Qf6
{[%clk 0:00:06.1]} 0-1

[Event "Early-Titled-Tuesday-Blitz-September-26-2023"]
[Site "Chess.com"]
[Date "2023.09.26"]
[Round "6"]
[White "jraosam"]
[Black "andrzej"]
[Result "1-0"]
[WhiteElo "2070"]
[BlackElo "2447"]
[TimeControl "180+1"]
[EndTime "9:11:44 PDT"]
[Termination "jraosam won by checkmate"]

1. Nf3 {[%clk 0:02:59.8]} 1... d5 {[%clk 0:02:59.8]} 2. c4 {[%clk 0:03:00.1]}
2... e6 {[%clk 0:02:59.3]} 3. e3 {[%clk 0:03:00.3]} 3... Nf6 {[%clk 0:02:58.7]}
4. b3 {[%clk 0:03:00.8]} 4... Nbd7 {[%clk 0:02:58.8]} 5. Bb2 {[%clk 0:03:01.4]}
5... Bd6 {[%clk 0:02:58.9]} 6. Be2 {[%clk 0:03:02.1]} 6... O-O {[%clk
0:02:58.8]} 7. O-O {[%clk 0:03:01.8]} 7... Re8 {[%clk 0:02:54.9]} 8. d4 {[%clk
0:03:01.8]} 8... b6 {[%clk 0:02:54.3]} 9. Nc3 {[%clk 0:03:01.7]} 9... Bb7 {[%clk
0:02:54.6]} 10. Rc1 {[%clk 0:03:01.3]} 10... a6 {[%clk 0:02:52.7]} 11. Na4
{[%clk 0:02:59.3]} 11... Ne4 {[%clk 0:02:45.1]} 12. c5 {[%clk 0:02:09.2]} 12...
bxc5 {[%clk 0:02:39.2]} 13. dxc5 {[%clk 0:02:07.3]} 13... Ndxc5 {[%clk
0:02:37.9]} 14. Nxc5 {[%clk 0:02:06.5]} 14... Nxc5 {[%clk 0:02:26.6]} 15. Ne5
{[%clk 0:01:51.5]} 15... Ne4 {[%clk 0:02:10.4]} 16. f3 {[%clk 0:01:46.1]} 16...
Nf6 {[%clk 0:02:07.4]} 17. Bd4 {[%clk 0:01:41]} 17... Rc8 {[%clk 0:01:55.1]} 18.
Nc6 {[%clk 0:01:40.2]} 18... Qd7 {[%clk 0:01:52.9]} 19. Bxf6 {[%clk 0:01:33.2]}
19... gxf6 {[%clk 0:01:52.7]} 20. Qc2 {[%clk 0:01:33.8]} 20... f5 {[%clk
0:01:47.2]} 21. Na5 {[%clk 0:01:33.5]} 21... c5 {[%clk 0:01:46.2]} 22. Qd3
{[%clk 0:01:20]} 22... Bxh2+ {[%clk 0:01:39.8]} 23. Kh1 {[%clk 0:01:16.9]} 23...
Be5 {[%clk 0:01:35.8]} 24. Nxb7 {[%clk 0:01:10.4]} 24... Qxb7 {[%clk 0:01:35.6]}
25. Qxa6 {[%clk 0:01:11]} 25... Qe7 {[%clk 0:01:33.6]} 26. f4 {[%clk 0:01:08.4]}
26... Bb8 {[%clk 0:01:19.3]} 27. Qd3 {[%clk 0:01:01.8]} 27... Qf6 {[%clk
0:01:15.8]} 28. Rf3 {[%clk 0:00:47.8]} 28... Kh8 {[%clk 0:01:12.3]} 29. Qc3
{[%clk 0:00:43.8]} 29... Qxc3 {[%clk 0:01:12.1]} 30. Rxc3 {[%clk 0:00:44.7]}
30... Bd6 {[%clk 0:01:12.8]} 31. Rh3 {[%clk 0:00:41.1]} 31... Ra8 {[%clk
0:01:08.6]} 32. Bb5 {[%clk 0:00:38.2]} 32... Reb8 {[%clk 0:01:08.3]} 33. a4
{[%clk 0:00:37.3]} 33... Rc8 {[%clk 0:01:03.7]} 34. Rf3 {[%clk 0:00:35.3]} 34...
Be7 {[%clk 0:01:03.1]} 35. Rc2 {[%clk 0:00:32.9]} 35... Bd8 {[%clk 0:00:57.5]}
36. Kh2 {[%clk 0:00:32.4]} 36... Bb6 {[%clk 0:00:57.8]} 37. Kh3 {[%clk
0:00:31.6]} 37... Kg7 {[%clk 0:00:57.8]} 38. g3 {[%clk 0:00:29.5]} 38... Kf6
{[%clk 0:00:57.9]} 39. Rh2 {[%clk 0:00:29.3]} 39... Rg8 {[%clk 0:00:56.7]} 40.
Kg2 {[%clk 0:00:28.6]} 40... Rg7 {[%clk 0:00:55.6]} 41. Rh6+ {[%clk 0:00:26.8]}
41... Ke7 {[%clk 0:00:55]} 42. Rh1 {[%clk 0:00:22.9]} 42... Ba5 {[%clk
0:00:53.7]} 43. Kf2 {[%clk 0:00:22.2]} 43... Bb4 {[%clk 0:00:53.6]} 44. Ke2
{[%clk 0:00:17]} 44... Kd6 {[%clk 0:00:53.5]} 45. Kd3 {[%clk 0:00:16.5]} 45...
Rag8 {[%clk 0:00:53.4]} 46. Rh3 {[%clk 0:00:15.7]} 46... h5 {[%clk 0:00:52]} 47.
Kc2 {[%clk 0:00:15.6]} 47... Rg4 {[%clk 0:00:51.6]} 48. Rxh5 {[%clk 0:00:14.5]}
48... Rxg3 {[%clk 0:00:51.2]} 49. Rxg3 {[%clk 0:00:15.4]} 49... Rxg3 {[%clk
0:00:51.6]} 50. Kd3 {[%clk 0:00:15.6]} 50... d4 {[%clk 0:00:49.9]} 51. Kc4
{[%clk 0:00:13.6]} 51... Rxe3 {[%clk 0:00:49.2]} 52. Be8 {[%clk 0:00:11.6]}
52... Rc3+ {[%clk 0:00:47.9]} 53. Kb5 {[%clk 0:00:12.2]} 53... Ke7 {[%clk
0:00:46.4]} 54. Bc6 {[%clk 0:00:11.4]} 54... d3 {[%clk 0:00:46.4]} 55. Rh1
{[%clk 0:00:11.2]} 55... Rxb3 {[%clk 0:00:46.2]} 56. Kc4 {[%clk 0:00:10.6]}
56... Rc3+ {[%clk 0:00:46.3]} 57. Kb5 {[%clk 0:00:11.1]} 57... d2 {[%clk
0:00:46.6]} 58. Rd1 {[%clk 0:00:11.7]} 58... Rc1 {[%clk 0:00:46.5]} 59. Bf3
{[%clk 0:00:12.3]} 59... Kd6 {[%clk 0:00:42.8]} 60. a5 {[%clk 0:00:12.4]} 60...
Kc7 {[%clk 0:00:34.9]} 61. a6 {[%clk 0:00:11.9]} 61... Kb8 {[%clk 0:00:34]} 62.
Kb6 {[%clk 0:00:10.8]} 62... Ba5+ {[%clk 0:00:09.5]} 63. Kxa5 {[%clk 0:00:10.9]}
63... Ka7 {[%clk 0:00:10.1]} 64. Rxd2 {[%clk 0:00:08.4]} 64... Ra1+ {[%clk
0:00:10.6]} 65. Kb5 {[%clk 0:00:08.7]} 65... Rb1+ {[%clk 0:00:11]} 66. Kxc5
{[%clk 0:00:07.7]} 66... Kxa6 {[%clk 0:00:11.4]} 67. Rd6+ {[%clk 0:00:07.1]}
67... Ka5 {[%clk 0:00:11.3]} 68. Rd7 {[%clk 0:00:07.4]} 68... Rc1+ {[%clk
0:00:11.3]} 69. Kd4 {[%clk 0:00:05.2]} 69... Rf1 {[%clk 0:00:10.9]} 70. Ke3
{[%clk 0:00:05.2]} 70... Kb6 {[%clk 0:00:11.3]} 71. Rxf7 {[%clk 0:00:05.1]}
71... Kc5 {[%clk 0:00:11.7]} 72. Rd7 {[%clk 0:00:04.4]} 72... Rg1 {[%clk
0:00:10.4]} 73. Kf2 {[%clk 0:00:03.5]} 73... Ra1 {[%clk 0:00:10]} 74. Rd1 {[%clk
0:00:04]} 74... Ra2+ {[%clk 0:00:10.2]} 75. Kg3 {[%clk 0:00:03.7]} 75... Ra3
{[%clk 0:00:10.4]} 76. Re1 {[%clk 0:00:03.7]} 76... Kd6 {[%clk 0:00:09.5]} 77.
Rd1+ {[%clk 0:00:04.4]} 77... Ke7 {[%clk 0:00:09.7]} 78. Rb1 {[%clk 0:00:03.3]}
78... Rc3 {[%clk 0:00:07.6]} 79. Rb7+ {[%clk 0:00:04]} 79... Kf6 {[%clk
0:00:07.9]} 80. Rb6 {[%clk 0:00:04.5]} 80... Re3 {[%clk 0:00:08.1]} 81. Kf2
{[%clk 0:00:04.8]} 81... Rd3 {[%clk 0:00:08.5]} 82. Be2 {[%clk 0:00:04.3]} 82...
Rd4 {[%clk 0:00:08.4]} 83. Ke3 {[%clk 0:00:03.9]} 83... Re4+ {[%clk 0:00:08.3]}
84. Kf3 {[%clk 0:00:04.1]} 84... Ra4 {[%clk 0:00:09.2]} 85. Rc6 {[%clk 0:00:04]}
85... Rb4 {[%clk 0:00:09.1]} 86. Bc4 {[%clk 0:00:04.3]} 86... Rb1 {[%clk
0:00:06]} 87. Bxe6 {[%clk 0:00:04.4]} 87... Kg7 {[%clk 0:00:06.9]} 88. Bc4
{[%clk 0:00:04.2]} 88... Rb2 {[%clk 0:00:06]} 89. Be6 {[%clk 0:00:04.4]} 89...
Kf6 {[%clk 0:00:05.2]} 90. Bc8+ {[%clk 0:00:04.8]} 90... Ke7 {[%clk 0:00:05.5]}
91. Bxf5 {[%clk 0:00:05.5]} 91... Rb3+ {[%clk 0:00:06]} 92. Kg4 {[%clk
0:00:05.5]} 92... Kf7 {[%clk 0:00:06.4]} 93. Be6+ {[%clk 0:00:05.1]} 93... Kf6
{[%clk 0:00:05.3]} 94. Bxb3+ {[%clk 0:00:06]} 94... Kg7 {[%clk 0:00:06.2]} 95.
Rc7+ {[%clk 0:00:05.6]} 95... Kh8 {[%clk 0:00:07.1]} 96. Rc8+ {[%clk 0:00:04.4]}
96... Kg7 {[%clk 0:00:07.2]} 97. Rg8+ {[%clk 0:00:05]} 97... Kh7 {[%clk
0:00:07.1]} 98. Rg5 {[%clk 0:00:04.9]} 98... Kh6 {[%clk 0:00:08]} 99. Bd1 {[%clk
0:00:04.9]} 99... Kh7 {[%clk 0:00:08.9]} 100. Bf3 {[%clk 0:00:05.8]} 100... Kh6
{[%clk 0:00:09.3]} 101. f5 {[%clk 0:00:06.5]} 101... Kh7 {[%clk 0:00:10.2]} 102.
f6 {[%clk 0:00:07.4]} 102... Kh6 {[%clk 0:00:10]} 103. f7 {[%clk 0:00:08.1]}
103... Kh7 {[%clk 0:00:10.9]} 104. Bg2 {[%clk 0:00:08.3]} 104... Kh6 {[%clk
0:00:10.3]} 105. f8=Q+ {[%clk 0:00:08.7]} 105... Kh7 {[%clk 0:00:11.2]} 106.
Qg7# {[%clk 0:00:08.8]} 1-0

[Event "Early-Titled-Tuesday-Blitz-September-26-2023"]
[Site "Chess.com"]
[Date "2023.09.26"]
[Round "7"]
[White "MatthewG-p4p"]
[Black "SharapovEvgeny"]
[Result "1-0"]
[WhiteElo "2806"]
[BlackElo "2591"]
[TimeControl "180+1"]
[EndTime "9:13:57 PDT"]
[Termination "MatthewG-p4p won by resignation"]

1. f4 {[%clk 0:03:00.9]} 1... c5 {[%clk 0:02:58.7]} 2. Nf3 {[%clk 0:03:01.2]}
2... Nc6 {[%clk 0:02:58.6]} 3. g3 {[%clk 0:02:58.7]} 3... g6 {[%clk 0:02:58.6]}
4. Bg2 {[%clk 0:02:59.3]} 4... Bg7 {[%clk 0:02:59]} 5. O-O {[%clk 0:03:00]} 5...
e6 {[%clk 0:02:59.6]} 6. d3 {[%clk 0:03:00.7]} 6... Nge7 {[%clk 0:03:00.1]} 7.
Nc3 {[%clk 0:03:01.5]} 7... O-O {[%clk 0:03:00.1]} 8. e4 {[%clk 0:03:02.2]} 8...
d6 {[%clk 0:03:00.4]} 9. h3 {[%clk 0:03:00.9]} 9... Rb8 {[%clk 0:03:00.2]} 10.
a4 {[%clk 0:03:01]} 10... a6 {[%clk 0:03:00.3]} 11. g4 {[%clk 0:03:01.8]} 11...
f5 {[%clk 0:02:58.4]} 12. Ne2 {[%clk 0:02:48.7]} 12... Nd4 {[%clk 0:02:56.6]}
13. Ng3 {[%clk 0:02:48.3]} 13... Nxf3+ {[%clk 0:02:54.8]} 14. Qxf3 {[%clk
0:02:47.7]} 14... Nc6 {[%clk 0:02:54.7]} 15. c3 {[%clk 0:02:46.7]} 15... b5
{[%clk 0:02:54.6]} 16. axb5 {[%clk 0:02:47.5]} 16... axb5 {[%clk 0:02:54.8]} 17.
exf5 {[%clk 0:02:47.9]} 17... Bb7 {[%clk 0:02:52.3]} 18. fxg6 {[%clk 0:02:42.4]}
18... hxg6 {[%clk 0:02:50.7]} 19. Qe2 {[%clk 0:02:41.8]} 19... e5 {[%clk
0:02:50.1]} 20. Bd5+ {[%clk 0:02:41.2]} 20... Kh7 {[%clk 0:02:50]} 21. Ne4
{[%clk 0:02:36.8]} 21... Qh4 {[%clk 0:02:45.7]} 22. Qg2 {[%clk 0:02:31.5]} 22...
exf4 {[%clk 0:02:44.5]} 23. Bxf4 {[%clk 0:02:30.3]} 23... Ne5 {[%clk 0:02:44.4]}
24. Bxb7 {[%clk 0:02:28.1]} 24... Rxb7 {[%clk 0:02:44.3]} 25. Ng5+ {[%clk
0:02:28.3]} 1-0

[Event "Early-Titled-Tuesday-Blitz-September-26-2023"]
[Site "Chess.com"]
[Date "2023.09.26"]
[Round "7"]
[White "Aleksandar-Topalov"]
[Black "Vesper2018"]
[Result "0-1"]
[WhiteElo "2395"]
[BlackElo "2583"]
[TimeControl "180+1"]
[EndTime "9:14:27 PDT"]
[Termination "Vesper2018 won by resignation"]

1. b3 {[%clk 0:03:00.9]} 1... e5 {[%clk 0:02:59.1]} 2. Bb2 {[%clk 0:03:00.2]}
2... d6 {[%clk 0:02:59.6]} 3. d4 {[%clk 0:03:00]} 3... e4 {[%clk 0:02:55.9]} 4.
d5 {[%clk 0:03:00.1]} 4... f5 {[%clk 0:02:50.7]} 5. e3 {[%clk 0:03:00.3]} 5...
Nf6 {[%clk 0:02:50.3]} 6. Ne2 {[%clk 0:03:00.6]} 6... Nbd7 {[%clk 0:02:46.7]} 7.
Nbc3 {[%clk 0:03:00.5]} 7... Ne5 {[%clk 0:02:45.5]} 8. Nb5 {[%clk 0:02:58.8]}
8... Be7 {[%clk 0:02:37.8]} 9. Nbd4 {[%clk 0:02:58.6]} 9... O-O {[%clk
0:02:36.8]} 10. Nf4 {[%clk 0:02:58.7]} 10... Rf7 {[%clk 0:02:27.4]} 11. h4
{[%clk 0:02:55.4]} 11... c5 {[%clk 0:02:19.4]} 12. Nde6 {[%clk 0:02:40.5]} 12...
Bxe6 {[%clk 0:02:09]} 13. dxe6 {[%clk 0:02:26.3]} 13... Qa5+ {[%clk 0:02:04.5]}
14. Qd2 {[%clk 0:02:24.9]} 14... Qxd2+ {[%clk 0:02:00.6]} 15. Kxd2 {[%clk
0:02:25.1]} 15... Rff8 {[%clk 0:02:01.3]} 16. Nd5 {[%clk 0:02:23.2]} 16... Nxd5
{[%clk 0:02:00.1]} 0-1

[Event "Early-Titled-Tuesday-Blitz-September-26-2023"]
[Site "Chess.com"]
[Date "2023.09.26"]
[Round "7"]
[White "vedantgoswami"]
[Black "cukin84"]
[Result "1-0"]
[WhiteElo "2356"]
[BlackElo "2210"]
[TimeControl "180+1"]
[EndTime "9:15:09 PDT"]
[Termination "vedantgoswami won by resignation"]

1. g3 {[%clk 0:03:00.9]} 1... d5 {[%clk 0:02:59.4]} 2. Bg2 {[%clk 0:03:01.4]}
2... e5 {[%clk 0:02:58.5]} 3. c4 {[%clk 0:03:01.8]} 3... c6 {[%clk 0:02:58.2]}
4. cxd5 {[%clk 0:03:01.1]} 4... cxd5 {[%clk 0:02:58]} 5. d4 {[%clk 0:03:01.4]}
5... e4 {[%clk 0:02:57.8]} 6. Nc3 {[%clk 0:02:58.7]} 6... Nf6 {[%clk 0:02:57.2]}
7. Bg5 {[%clk 0:02:57.8]} 7... Be7 {[%clk 0:02:53.1]} 8. f3 {[%clk 0:02:56.6]}
8... exf3 {[%clk 0:02:50.9]} 9. Nxf3 {[%clk 0:02:52]} 9... O-O {[%clk
0:02:50.1]} 10. O-O {[%clk 0:02:46.6]} 10... Nc6 {[%clk 0:02:48.7]} 11. Ne5
{[%clk 0:02:47.1]} 11... Be6 {[%clk 0:02:34.9]} 12. Rc1 {[%clk 0:02:38.8]} 12...
Rc8 {[%clk 0:02:34]} 13. Nxc6 {[%clk 0:02:18.9]} 13... bxc6 {[%clk 0:02:31.8]}
14. Na4 {[%clk 0:02:13.5]} 14... Ne4 {[%clk 0:02:27.1]} 15. Bxe7 {[%clk
0:02:10.8]} 15... Qxe7 {[%clk 0:02:26.9]} 16. Bxe4 {[%clk 0:02:11.1]} 16... dxe4
{[%clk 0:02:26.7]} 17. b3 {[%clk 0:02:06.2]} 17... Bh3 {[%clk 0:02:25.2]} 18.
Rf4 {[%clk 0:02:05.3]} 18... e3 {[%clk 0:02:25.2]} 19. Qd3 {[%clk 0:01:59.9]}
19... Rfe8 {[%clk 0:02:19.4]} 20. Rh4 {[%clk 0:01:58.5]} 20... Bf5 {[%clk
0:01:58.3]} 21. Qxf5 {[%clk 0:01:56.9]} 21... g6 {[%clk 0:01:58.6]} 22. Qf4
{[%clk 0:01:55.1]} 1-0

[Event "Early-Titled-Tuesday-Blitz-September-26-2023"]
[Site "Chess.com"]
[Date "2023.09.26"]
[Round "7"]
[White "GG91"]
[Black "Eloist"]
[Result "0-1"]
[WhiteElo "2298"]
[BlackElo "2486"]
[TimeControl "180+1"]
[EndTime "9:16:23 PDT"]
[Termination "Eloist won by resignation"]

1. d4 {[%clk 0:03:00.9]} 1... e6 {[%clk 0:02:56.6]} 2. Nf3 {[%clk 0:03:01.8]}
2... Nf6 {[%clk 0:02:56]} 3. e3 {[%clk 0:03:01.9]} 3... b6 {[%clk 0:02:55.7]} 4.
Nbd2 {[%clk 0:03:01.5]} 4... Bb7 {[%clk 0:02:55.4]} 5. Bd3 {[%clk 0:03:01.1]}
5... c5 {[%clk 0:02:55.5]} 6. c3 {[%clk 0:03:00.7]} 6... d5 {[%clk 0:02:50.9]}
7. O-O {[%clk 0:02:59.8]} 7... Nc6 {[%clk 0:02:50.7]} 8. Ne5 {[%clk 0:02:54.8]}
8... Nxe5 {[%clk 0:02:43]} 9. dxe5 {[%clk 0:02:55.7]} 9... Nd7 {[%clk
0:02:42.7]} 10. f4 {[%clk 0:02:56.1]} 10... Be7 {[%clk 0:02:33]} 11. Qg4 {[%clk
0:02:54.3]} 11... g6 {[%clk 0:02:31.7]} 12. e4 {[%clk 0:02:37.5]} 12... c4
{[%clk 0:02:28]} 13. Bc2 {[%clk 0:02:34.3]} 13... Nc5 {[%clk 0:02:26.6]} 14.
exd5 {[%clk 0:02:27.4]} 14... Qxd5 {[%clk 0:02:26]} 15. Nf3 {[%clk 0:02:18.4]}
15... h5 {[%clk 0:02:23.6]} 16. Qh3 {[%clk 0:02:16.2]} 16... Nd3 {[%clk
0:02:15.8]} 17. Rd1 {[%clk 0:02:10.2]} 17... Bc5+ {[%clk 0:02:04.9]} 18. Kf1
{[%clk 0:02:06.1]} 18... Qe4 {[%clk 0:01:56.8]} 19. Ne1 {[%clk 0:01:52.9]} 19...
O-O-O {[%clk 0:01:31.9]} 20. Nxd3 {[%clk 0:01:26]} 20... cxd3 {[%clk 0:01:31.3]}
21. Bxd3 {[%clk 0:01:26.7]} 21... Rxd3 {[%clk 0:01:26]} 22. Rxd3 {[%clk
0:01:26.2]} 22... Ba6 {[%clk 0:01:22.9]} 0-1

[Event "Early-Titled-Tuesday-Blitz-September-26-2023"]
[Site "Chess.com"]
[Date "2023.09.26"]
[Round "7"]
[White "Austen48"]
[Black "KerryStead"]
[Result "0-1"]
[WhiteElo "2267"]
[BlackElo "2100"]
[TimeControl "180+1"]
[EndTime "9:16:30 PDT"]
[Termination "KerryStead won by checkmate"]

1. d4 {[%clk 0:02:59.3]} 1... c5 {[%clk 0:02:59.5]} 2. d5 {[%clk 0:02:58.7]}
2... f5 {[%clk 0:02:59.7]} 3. g3 {[%clk 0:02:51.4]} 3... g6 {[%clk 0:02:58.4]}
4. h4 {[%clk 0:02:50.8]} 4... Bg7 {[%clk 0:02:57.3]} 5. h5 {[%clk 0:02:49.9]}
5... Nf6 {[%clk 0:02:56.6]} 6. hxg6 {[%clk 0:02:49.4]} 6... hxg6 {[%clk
0:02:56.5]} 7. Rxh8+ {[%clk 0:02:49.6]} 7... Bxh8 {[%clk 0:02:57.4]} 8. Nc3
{[%clk 0:02:46.6]} 8... d6 {[%clk 0:02:57.4]} 9. Bg2 {[%clk 0:02:43.1]} 9...
Nbd7 {[%clk 0:02:55.1]} 10. Nh3 {[%clk 0:02:42.3]} 10... Ne5 {[%clk 0:02:49.1]}
11. Ng5 {[%clk 0:02:42.2]} 11... Bd7 {[%clk 0:02:48.5]} 12. a4 {[%clk
0:02:36.3]} 12... a6 {[%clk 0:02:44.5]} 13. e4 {[%clk 0:02:25.8]} 13... Qc7
{[%clk 0:02:39.8]} 14. f4 {[%clk 0:02:12.8]} 14... Neg4 {[%clk 0:02:35]} 15. Bd2
{[%clk 0:02:03.7]} 15... O-O-O {[%clk 0:02:32]} 16. Qe2 {[%clk 0:02:03.3]} 16...
fxe4 {[%clk 0:02:19.8]} 17. Nf7 {[%clk 0:01:52.3]} 17... Rf8 {[%clk 0:02:16.7]}
18. Nxh8 {[%clk 0:01:52.1]} 18... Rxh8 {[%clk 0:02:16.6]} 19. O-O-O {[%clk
0:01:51.3]} 19... Bf5 {[%clk 0:02:11.1]} 20. Bxe4 {[%clk 0:01:48.5]} 20... Nxe4
{[%clk 0:02:05]} 21. Nxe4 {[%clk 0:01:47.3]} 21... Qd7 {[%clk 0:02:02.7]} 22.
Bc3 {[%clk 0:01:45]} 22... Rh2 {[%clk 0:02:01.2]} 23. Qf3 {[%clk 0:01:32.4]}
23... Qxa4 {[%clk 0:01:59.3]} 24. Rd2 {[%clk 0:00:38]} 24... Qa1# {[%clk
0:01:56.3]} 0-1